bitfinex/quotes_ETHUSD_20260310
["timestamp","ask_amount","ask_price","bid_price","bid_amount"]
[1773178743818,0.68798433,2035.9,2035.0,0.66241831]
[1773178745542,1.91600279,2035.8,2035.2,0.66241831]
[1773178745748,4.91204963,2035.9,2035.4,0.66241831]
[1773178745749,0.68798433,2035.9,2035.4,0.66241831]
[1773178746217,1.22792722,2036.0,2035.4,0.66241831]
[1773178746617,1.91591155,2036.0,2035.5,1.21801285]
[1773178746815,1.91589891,2036.0,2035.5,1.77360739]
[1773178747138,0.68798433,2036.0,2035.5,1.77360739]
[1773178747325,1.91588802,2036.0,2035.6,0.66241831]
[1773178747942,0.68798433,2036.0,2035.6,0.66241831]
[1773178748144,1.91576818,2036.2,2035.6,1.89055004]
[1773178748317,1.91576818,2036.2,2035.7,0.66241831]
[1773178749918,0.68798433,2036.1,2035.5,2.17841831]
[1773178750567,0.68898433,2035.7,2035.1,0.66241831]
[1773178750860,0.68898433,2035.7,2035.2,2.17341831]
[1773178752722,0.68798433,2035.6,2035.2,2.16541831]
[1773178754549,0.68798433,2035.6,2035.2,2.16741831]
[1773178755850,1.91614086,2035.6,2035.2,0.66241831]
[1773178756232,0.68798433,2035.5,2035.0,1.89199427]
[1773178756436,0.68798433,2035.5,2035.0,2.17051831]
[1773178758027,1.91622923,2035.5,2035.0,0.66351831]
[1773178758228,1.91622923,2035.5,2035.1,1.508]
[1773178760260,1.91622923,2035.5,2035.1,2.19295264]
[1773178760936,0.001,2035.7,2035.2,0.68495264]
[1773178760937,1.88890637,2035.7,2035.2,0.68495264]
[1773178761130,0.65980192,2035.6,2035.2,0.68495264]
[1773178762949,0.001,2035.5,2035.2,0.68495264]
[1773178767665,0.001,2035.7,2035.3,0.68495264]
[1773178768442,0.001,2035.7,2035.5,0.68495264]
[1773178769862,0.001,2035.7,2035.6,2.19695264]
[1773178770577,0.65980192,2036.2,2035.7,0.68495264]
[1773178771671,0.65980192,2036.2,2035.6,1.512]
[1773178771672,0.65980192,2036.2,2035.6,1.06314758]
[1773178771851,0.65980192,2035.8,2035.1,0.68495264]
[1773178772056,0.65980192,2035.8,2035.1,2.18295264]
[1773178772456,0.65980192,2035.6,2035.1,0.68495264]
[1773178772774,0.65980192,2035.6,2035.1,2.18395264]
[1773178772973,0.65980192,2035.6,2035.2,0.68495264]
[1773178773351,1.88784811,2035.8,2035.2,0.68495264]
[1773178774071,1.88784811,2035.8,2035.3,1.501]
[1773178774240,1.88784811,2035.8,2035.4,0.68495264]
[1773178774650,0.001,2035.6,2035.4,0.68495264]
[1773178776406,1.22819945,2035.5,2035.2,0.0011]
[1773178776693,1.88800137,2035.5,2035.2,0.0011]
[1773178778683,1.88800137,2035.5,2034.8,4.91557754]
[1773178778684,0.65980192,2035.3,2034.8,0.0011]
[1773178781087,1.88818242,2035.2,2034.8,0.0011]
[1773178781694,0.65980192,2035.1,2034.8,0.0011]
[1773178783759,5.57332393,2035.3,2034.8,0.68605264]
[1773178784899,0.65980192,2035.2,2034.8,0.68605264]
[1773178786591,1.22844086,2035.1,2034.8,0.68605264]
[1773178787257,1.22844086,2035.1,2035.0,0.0011]
[1773178788782,1.22842668,2035.2,2035.0,0.0011]
[1773178790291,1.22842668,2035.2,2035.0,0.72758092]
[1773178790892,4.91342294,2035.3,2035.0,0.72758092]
[1773178792086,5.60562943,2035.3,2035.0,0.72758092]
[1773178794396,4.91284308,2035.5,2035.0,0.72758092]
[1773178794397,0.69220649,2035.5,2035.0,0.72758092]
[1773178795072,0.69220649,2035.5,2035.0,1.95607759]
[1773178795264,0.69220649,2035.5,2035.0,0.72758092]
[1773178796104,0.69220649,2035.5,2035.1,0.72648092]
[1773178799092,1.2282598,2035.4,2035.1,0.72648092]
[1773178799403,1.2282598,2035.4,2035.2,0.0011]
[1773178799598,0.001,2035.3,2035.2,0.0011]
[1773178800404,1.22803923,2035.8,2035.3,0.72648092]
[1773178800607,1.92120658,2035.9,2035.3,0.72648092]
[1773178801007,1.92120658,2035.9,2035.5,0.72648092]
[1773178801008,0.001,2035.9,2035.5,0.72648092]
[1773178802385,0.001,2035.9,2035.6,0.72648092]
[1773178802623,0.69220649,2036.2,2035.6,0.72648092]
[1773178802819,1.22769433,2036.4,2035.6,0.72648092]
[1773178803018,1.5594987,2036.6,2036.1,0.72648092]
[1773178803222,0.001,2036.5,2036.1,0.72648092]
[1773178803716,0.001,2036.5,2036.2,0.72648092]
[1773178804719,1.22723479,2037.1,2036.3,0.72648092]
[1773178804915,0.001,2036.9,2036.3,0.72648092]
[1773178806321,0.001,2036.9,2036.5,0.72648092]
[1773178806516,0.001,2036.9,2036.1,2.41319851]
[1773178806517,1.22723479,2037.1,2036.1,2.23248092]
[1773178806518,0.69220649,2036.7,2036.1,2.23248092]
[1773178808196,0.69220649,2036.7,2036.2,0.72648092]
[1773178808396,1.22753608,2036.6,2036.2,0.72648092]
[1773178809325,1.91974257,2036.6,2036.2,0.72648092]
[1773178810122,0.69320649,2036.5,2035.8,1.506]
[1773178810429,1.22765664,2036.4,2035.9,0.18723536]
[1773178810624,0.69220649,2036.3,2035.9,0.18723536]
[1773178814524,1.91993845,2036.3,2035.9,1.41519016]
[1773178814729,1.91993845,2036.3,2036.0,0.17713312]
[1773178815301,1.92093845,2036.3,2036.0,0.17713312]
[1773178817610,0.69320649,2036.3,2036.0,1.4050119]
[1773178817799,0.69320649,2036.3,2036.0,1.68213312]
[1773178818199,1.92094443,2036.3,2036.0,1.68213312]
[1773178818400,0.69320649,2036.3,2036.0,1.68213312]
[1773178818596,0.69320649,2036.3,2035.8,4.91299799]
[1773178818597,0.69220649,2036.1,2035.8,0.0011]
[1773178819726,0.68031598,2035.9,2035.8,0.0011]
[1773178820520,0.68031598,2035.6,2035.2,0.0011]
[1773178821833,1.22819945,2035.5,2035.2,0.0011]
[1773178822127,0.68031598,2035.4,2035.2,0.0011]
[1773178824624,0.68031598,2035.3,2035.2,0.0011]
[1773178825733,0.67921598,2035.3,2035.2,0.0011]
[1773178826106,0.68031598,2035.5,2035.2,0.0011]
[1773178831025,1.228142,2035.6,2035.2,0.0011]
[1773178831431,1.90845798,2035.6,2035.2,0.71152671]
[1773178834247,1.90845798,2035.6,2035.1,0.36025808]
[1773178835026,1.228142,2035.6,2035.0,0.0011]
[1773178837141,4.91232417,2035.7,2035.0,0.0011]
[1773178837825,4.91232417,2035.7,2035.2,0.0011]
[1773178838024,0.001,2035.4,2035.2,0.0011]
[1773178841077,1.2292598,2035.4,2035.2,0.0011]
[1773178841772,1.90957578,2035.4,2035.2,0.0011]
[1773178843139,0.68031598,2035.3,2035.2,0.0011]
[1773178843473,1.90957578,2035.4,2035.2,0.0011]
[1773178847271,1.2292598,2035.4,2035.2,0.35593064]
[1773178847655,1.85166708,2035.6,2035.3,0.35584955]
[1773178848276,1.22795815,2035.9,2035.3,0.35584955]
[1773178849375,1.22795815,2035.9,2035.3,1.489]
[1773178849579,1.22795815,2035.9,2035.4,0.35785239]
[1773178849767,0.65465921,2036.0,2035.4,0.35785239]
[1773178849962,0.65465921,2036.0,2035.4,1.58611196]
[1773178850164,0.65465921,2036.0,2035.5,0.35883659]
[1773178852052,1.88256435,2036.0,2035.6,0.36077121]
[1773178856969,0.65465921,2035.9,2035.6,0.36077121]
[1773178859190,1.22801846,2035.8,2035.6,0.36077121]
[1773178860393,0.65465921,2035.7,2035.4,0.0011]
[1773178861158,1.22813912,2035.6,2035.4,0.40784697]
[1773178861381,1.22808844,2035.7,2035.4,0.40784697]
[1773178861585,0.65465921,2035.9,2035.5,0.40674697]
[1773178861894,0.001,2035.7,2035.5,0.40674697]
[1773178862462,0.001,2036.1,2035.5,0.40760376]
[1773178862661,0.001,2036.1,2035.6,0.40760376]
[1773178862863,0.65565921,2036.1,2035.4,0.0011]
[1773178863164,0.65565921,2036.1,2034.0,3.0166878]
[1773178863165,1.22868236,2034.7,2034.0,3.0166878]
[1773178863366,0.65465921,2034.6,2034.1,0.63034557]
[1773178863886,1e-08,2034.6,2034.2,0.63034557]
[1773178864105,1.22862676,2034.8,2034.4,0.63034557]
[1773178864406,1.79828281,2034.9,2034.4,0.63034557]
[1773178864961,3.49204391,2034.7,2034.1,0.63034557]
[1773178865202,2.32670704,2034.6,2034.3,0.63034557]
[1773178867189,2.32670704,2034.7,2034.3,0.63034557]
[1773178867369,2.32670704,2034.7,2034.4,0.0055]
[1773178867774,0.65465921,2034.8,2034.4,0.0055]
[1773178867775,2.98136625,2034.8,2034.5,0.0055]
[1773178867983,2.32670704,2035.0,2034.6,0.63034557]
[1773178868182,2.32670704,2035.1,2034.6,0.63584557]
[1773178868467,2.98136625,2035.1,2034.7,0.63034557]
[1773178868976,2.98136625,2035.3,2034.8,0.63584557]
[1773178869160,2.32670704,2034.9,2034.2,0.63034557]
[1773178869366,0.65465921,2034.8,2034.3,1.85926952]
[1773178869567,0.65465921,2034.8,2034.4,0.63034557]
[1773178870195,2.32670704,2034.9,2034.4,0.63034557]
[1773178870497,4.20990286,2035.0,2034.4,0.63034557]
[1773178871368,0.65465921,2034.9,2034.1,0.63034557]
[1773178871698,0.65465921,2034.9,2034.3,0.63034557]
[1773178872101,0.65465921,2034.8,2034.0,0.63034557]
[1773178872283,0.65465921,2034.7,2034.1,1.494]
[1773178873487,0.65465921,2034.5,2034.1,1.5]
[1773178873873,0.65465921,2034.5,2033.9,0.0011]
[1773178874067,0.65465921,2034.5,2033.4,0.63034557]
[1773178874068,0.65465921,2034.2,2033.4,0.63034557]
[1773178874378,0.65465921,2034.1,2033.4,0.63034557]
[1773178874973,0.65465921,2034.1,2033.2,1.495]
[1773178874974,0.65465921,2034.0,2033.2,1.495]
[1773178875408,0.65465921,2034.0,2033.1,0.63034557]
[1773178875719,0.65465921,2033.8,2033.1,0.63034557]
[1773178876004,0.65465921,2033.6,2033.1,1.85999262]
[1773178876378,0.65465921,2033.6,2033.1,0.63034557]
[1773178876706,0.65465921,2033.6,2032.8,0.63034557]
[1773178876877,1.22916564,2033.9,2032.9,2.13234557]
[1773178876878,2.89180034,2033.5,2032.9,2.13234557]
[1773178877203,0.65465921,2033.5,2033.0,1.503]
[1773178877605,1.22946788,2033.4,2033.1,1.504]
[1773178877798,1.22946788,2033.4,2032.9,0.63034557]
[1773178877999,0.54034813,2033.3,2033.0,1.506]
[1773178878302,0.489625,2033.3,2033.0,1.506]
[1773178878903,0.65465921,2033.5,2033.0,1.508]
[1773178879677,1.92564211,2033.4,2033.0,1.508]
[1773178879904,0.69617423,2033.3,2033.0,1.511]
[1773178881387,0.69617423,2033.3,2033.0,1.514]
[1773178881909,1.92573892,2033.3,2033.0,1.515]
[1773178882791,1.9257071,2033.3,2033.0,1.515]
[1773178883685,4.91715484,2033.7,2033.1,1.2296493]
[1773178883686,0.69617423,2033.6,2033.1,1.2296493]
[1773178883884,0.69617423,2033.6,2033.0,6.43368297]
[1773178883885,0.69617423,2033.4,2033.0,3.44937281]
[1773178884106,1.92541105,2033.8,2033.1,0.70168766]
[1773178884616,0.69617423,2033.6,2032.9,1.519]
[1773178884907,0.69617423,2033.4,2032.7,1.519]
[1773178885214,0.69617423,2033.2,2032.7,1.519]
[1773178885793,1.92577468,2033.2,2032.7,2.74885155]
[1773178886294,0.69617423,2033.2,2032.7,3.45053921]
[1773178886489,0.69617423,2033.2,2032.9,0.0011]
[1773178886915,2.87986627,2033.1,2032.1,4.99528058]
[1773178887114,2.87986627,2033.1,2031.3,5.177]
[1773178887115,2.87986627,2033.1,2031.5,1.52]
[1773178887116,0.69617423,2032.4,2031.5,1.52]
[1773178887319,0.69617423,2032.7,2031.9,0.70168766]
[1773178887484,5.87376462,2033.3,2032.2,0.70168766]
[1773178887485,0.69617423,2033.1,2032.2,0.70168766]
[1773178887811,0.69617423,2033.1,2031.8,0.70168766]
[1773178887812,0.69617423,2032.8,2031.8,0.70168766]
[1773178887999,1.22977027,2032.9,2031.7,1.23049662]
[1773178888000,0.69617423,2032.6,2031.9,0.70168766]
[1773178888204,0.69617423,2032.6,2032.0,1.519]
[1773178889217,0.69617423,2032.8,2032.1,2.22268766]
[1773178889587,3.5749001,2032.7,2032.2,1.522]
[1773178889786,4.10867775,2032.6,2032.2,1.522]
[1773178889986,1.92614024,2032.6,2032.0,1.23028631]
[1773178890313,0.69617423,2032.6,2032.1,1.523]
[1773178890501,1.92605155,2032.8,2032.1,2.22468766]
[1773178890704,3.57387061,2032.7,2032.1,2.22468766]
[1773178891009,0.69617423,2032.7,2032.1,2.22468766]
[1773178891209,2.8794067,2032.6,2032.1,2.22468766]
[1773178891404,0.69617423,2032.7,2032.1,2.22468766]
[1773178891583,2.88032,2032.6,2032.1,2.22468766]
[1773178891785,0.69617423,2032.7,2032.1,2.22468766]
[1773178892114,2.88057695,2032.6,2032.2,2.75519387]
[1773178892295,4.22885555,2033.1,2032.3,0.70168766]
[1773178892616,2.88307773,2033.0,2032.3,0.70168766]
[1773178892914,2.88307773,2032.9,2032.4,1.526]
[1773178893080,0.69617423,2033.1,2032.4,2.22768766]
[1773178893283,3.53261261,2033.2,2032.4,2.22768766]
[1773178893284,2.88368613,2033.0,2032.5,0.70168766]
[1773178893510,1.92577569,2033.2,2032.6,1.527]
[1773178893695,2.88403464,2033.1,2032.6,1.527]
[1773178893893,2.88403464,2033.0,2032.6,1.527]
[1773178894217,0.69617423,2033.2,2032.7,1.22989127]
[1773178894416,2.88451958,2033.1,2032.8,1.528]
[1773178894713,2.88451958,2033.0,2032.8,1.528]
[1773178894909,0.69617423,2033.2,2032.8,1.528]
[1773178895217,2.07062557,2033.6,2032.9,0.70168766]
[1773178895585,0.84127005,2033.6,2032.9,0.70168766]
[1773178895819,0.84127005,2033.6,2033.0,3.12110114]
[1773178896026,0.84127005,2033.6,2033.2,1.22958882]
[1773178896226,4.3173784,2034.2,2033.4,0.70168766]
[1773178896227,4.15066414,2034.2,2033.4,0.70168766]
[1773178896409,1.92519977,2034.2,2033.4,0.70168766]
[1773178896612,1.92519977,2034.2,2033.3,2.41941348]
[1773178896613,0.69617423,2034.2,2033.5,2.23068766]
[1773178896789,0.69617423,2034.2,2033.6,0.70168766]
[1773178896987,1.92516442,2034.2,2033.6,0.70168766]
[1773178897209,1.92516442,2034.2,2033.7,1.53]
[1773178897513,0.69617423,2034.2,2033.7,1.53]
[1773178897714,1.92517586,2034.2,2033.7,1.53]
[1773178897915,0.69617423,2034.5,2033.7,1.53]
[1773178898123,5.6111182,2034.7,2033.9,0.70168766]
[1773178898418,1.9247667,2034.9,2034.0,0.70168766]
[1773178898886,0.69617423,2034.8,2033.8,1.22922607]
[1773178899084,0.69617423,2034.8,2033.9,1.53]
[1773178899287,0.69617423,2034.8,2034.0,1.53]
[1773178899999,0.69617423,2034.6,2034.0,1.53]
[1773178902296,0.69617423,2034.4,2034.0,1.53]
[1773178903018,0.69617423,2034.4,2033.8,1.22918556]
[1773178903219,0.69617423,2034.4,2033.9,1.531]
[1773178903814,0.69617423,2034.4,2033.8,1.22918556]
[1773178904018,0.69617423,2034.4,2033.9,1.53]
[1773178904208,1.22892395,2034.3,2034.0,1.53]
[1773178904392,1.92508669,2034.4,2034.0,1.53]
[1773178906101,1.92508669,2034.4,2033.8,1.22918556]
[1773178906323,1.92508669,2034.4,2033.9,1.53]
[1773178906698,0.69617423,2034.4,2033.9,2.23168766]
[1773178907024,1.92503909,2034.4,2033.9,2.23168766]
[1773178907391,1.92503909,2034.4,2034.0,1.53]
[1773178908637,2.06453153,2034.6,2034.1,1.99611879]
[1773178908829,2.89001226,2034.5,2034.1,1.99611879]
[1773178909020,2.064401,2034.8,2034.2,0.76707401]
[1773178911196,2.064401,2034.8,2034.2,1.99600853]
[1773178912122,2.064401,2034.8,2034.2,1.22893452]
[1773178912426,1.22862315,2034.8,2034.3,0.85292478]
[1773178912795,1.22860966,2034.9,2034.3,0.85292478]
[1773178913000,0.33408894,2035.1,2034.4,0.85292478]
[1773178913001,1.56257051,2035.1,2034.4,0.85292478]
[1773178913230,1.56257051,2035.1,2034.5,1.22880314]
[1773178913400,1.56257051,2035.1,2034.6,1.528]
[1773178914342,0.76833714,2034.5,2033.1,3.55755632]
[1773178914523,0.76833714,2034.1,2033.2,0.85292478]
[1773178914705,0.76833714,2034.6,2033.7,0.85292478]
[1773178914921,3.65158143,2034.5,2033.8,1.529]
[1773178915234,1.99720068,2034.4,2033.8,1.22922607]
[1773178915442,1.99720068,2034.4,2033.9,1.53]
[1773178917213,1.99720068,2034.4,2033.8,1.22922607]
[1773178917414,1.99720068,2034.4,2033.9,1.533]
[1773178917610,0.76833714,2034.6,2033.9,1.533]
[1773178917834,1.22871483,2034.7,2034.0,0.85292478]
[1773178918423,5.68290452,2034.8,2034.1,2.76303882]
[1773178918624,2.88900199,2034.7,2034.1,2.76303882]
[1773178919042,0.76833714,2034.6,2034.2,1.534]
[1773178919217,0.76833714,2034.6,2033.9,0.85292478]
[1773178919417,0.76833714,2034.6,2034.0,1.535]
[1773178920114,0.76833714,2034.6,2033.9,0.85292478]
[1773178920319,0.76833714,2034.4,2033.4,0.85292478]
[1773178920636,0.76833714,2034.1,2033.5,1.535]
[1773178920945,0.76833714,2033.9,2032.9,4.91901976]
[1773178921126,0.76833714,2033.9,2032.9,5.77194454]
[1773178921326,1.22898436,2034.2,2032.9,5.77194454]
[1773178921327,0.76833714,2033.7,2032.9,0.85292478]
[1773178921549,0.76833714,2033.5,2033.0,1.536]
[1773178921853,2.89503286,2033.4,2033.0,1.536]
[1773178922147,0.76833714,2033.5,2033.1,1.536]
[1773178922343,2.89751881,2033.4,2033.1,1.536]
[1773178922520,1.22946788,2033.4,2033.1,1.536]
[1773178923348,2.89888729,2033.3,2033.1,1.536]
[1773178923550,1.22946788,2033.4,2033.1,1.536]
[1773178923756,2.89889048,2033.3,2033.1,1.536]
[1773178924046,1.22946788,2033.4,2033.1,1.536]
[1773178924047,1.22946788,2033.4,2033.3,0.0011]
[1773178924241,4.12749307,2033.4,2033.3,0.0011]
[1773178925529,2.89802519,2033.4,2033.3,0.0011]
[1773178925738,4.12749307,2033.4,2033.3,0.0011]
[1773178926637,1.22925448,2033.8,2033.3,0.0011]
[1773178926831,2.89953132,2033.7,2033.3,0.0011]
[1773178927156,2.89953132,2033.6,2033.3,0.0011]
[1773178927351,1.99759162,2033.8,2033.3,0.0011]
[1773178927553,2.89894323,2033.7,2033.3,0.0011]
[1773178927755,1.99759162,2033.8,2032.4,0.85292478]
[1773178927756,0.76833714,2033.4,2032.4,0.85292478]
[1773178927959,0.76833714,2033.1,2032.3,0.0011]
[1773178928154,0.76833714,2032.9,2032.3,1.5231]
[1773178928658,0.76833714,2032.9,2032.3,0.0011]
[1773178928855,0.76833714,2032.9,2032.4,1.518]
[1773178929227,1.22983077,2032.8,2032.3,0.0011]
[1773178929430,1.99816791,2032.8,2032.3,0.0011]
[1773178930556,1.99816791,2032.8,2032.0,1.23137338]
[1773178930557,0.76833714,2032.6,2032.0,0.0011]
[1773178930752,0.76833714,2032.4,2032.0,0.0011]
[1773178931149,0.76833714,2032.4,2031.2,4.92316423]
[1773178931150,0.76833714,2032.4,2031.2,3.59667585]
[1773178931350,0.76833714,2032.4,2031.5,3.27233826]
[1773178931351,0.76833714,2032.3,2031.5,3.27233826]
[1773178931553,0.76833714,2032.3,2031.6,0.85292478]
[1773178931751,1.99831956,2032.6,2031.6,0.85292478]
[1773178931942,4.91925972,2032.9,2031.6,0.85292478]
[1773178931943,1.99811102,2032.9,2031.9,0.85292478]
[1773178932657,0.76833714,2032.9,2032.1,0.85292478]
[1773178932859,1.99812354,2032.9,2032.1,0.85292478]
[1773178933435,5.9446309,2033.6,2032.4,0.85292478]
[1773178933436,0.76833714,2033.2,2032.4,0.85292478]
[1773178933635,3.45968142,2033.6,2032.4,0.85292478]
[1773178933636,1.99774456,2033.5,2032.4,0.85292478]
[1773178933868,2.88384904,2033.4,2032.4,0.85292478]
[1773178934240,1.99768995,2033.6,2032.4,0.85292478]
[1773178934570,2.88405425,2033.5,2032.6,0.85292478]
[1773178935142,3.65239139,2033.5,2032.6,0.85292478]
[1773178935341,0.76833714,2033.5,2032.7,1.522]
[1773178935867,1.99762366,2033.7,2032.8,2.08275555]
[1773178936074,0.001,2033.3,2032.8,2.08275555]
[1773178936277,1.56793299,2033.8,2032.9,0.85292478]
[1773178936567,2.8842682,2033.7,2033.0,2.37592478]
[1773178936741,0.33867998,2033.8,2033.0,2.37592478]
[1773178936742,1.56791822,2033.8,2033.1,1.524]
[1773178936942,1.56791822,2033.8,2033.0,0.85292478]
[1773178936943,2.88435267,2033.7,2033.2,1.524]
[1773178937560,1.56791822,2033.8,2033.2,1.524]
[1773178938060,1.56791822,2033.8,2033.3,1.525]
[1773178938649,0.33867998,2033.8,2033.3,1.525]
[1773178939061,0.33867998,2033.8,2033.3,2.37792478]
[1773178939372,0.33867998,2033.8,2033.4,1.526]
[1773178939668,0.33867998,2033.8,2033.5,1.526]
[1773178940068,0.33867998,2033.8,2033.5,2.75537152]
[1773178940863,0.33867998,2033.8,2033.4,2.75646132]
[1773178942545,0.33867998,2033.8,2033.5,1.528]
[1773178944067,0.02459044,2033.8,2033.5,1.528]
[1773178944374,0.76833714,2034.0,2033.6,1.22934697]
[1773178947962,0.86023482,2034.3,2033.6,1.22934697]
[1773178948149,2.08928902,2034.1,2033.6,1.22934697]
[1773178948552,0.001,2033.8,2033.6,1.22934697]
[1773178950690,0.86023482,2034.3,2033.7,0.91960776]
[1773178950983,2.90030451,2034.2,2033.7,0.91960776]
[1773178951193,0.86023482,2034.3,2033.7,0.91960776]
[1773178951373,2.89994731,2034.2,2033.7,0.91960776]
[1773178951565,0.86023482,2034.3,2033.7,0.91960776]
[1773178951766,0.86123482,2034.5,2033.9,0.91960776]
[1773178951977,2.90007406,2034.4,2033.9,0.91960776]
[1773178952294,0.86123482,2034.5,2033.9,0.91960776]
[1773178952542,2.89908914,2034.4,2033.9,0.91960776]
[1773178952813,0.86123482,2034.5,2034.0,1.22910521]
[1773178953022,2.89908371,2034.4,2034.0,1.22910521]
[1773178953327,0.86123482,2034.5,2034.0,1.22910521]
[1773178954185,2.09003938,2034.5,2034.0,1.22910521]
[1773178954997,0.001,2034.5,2034.0,0.91960776]
[1773178957204,0.001,2034.5,2034.1,2.14865254]
[1773178958092,0.001,2034.5,2034.2,0.91960776]
[1773178958311,0.001,2034.5,2034.3,1.531]
[1773178959030,0.001,2034.5,2033.6,1.22932504]
[1773178959031,0.86123482,2034.5,2033.6,1.22932504]
[1773178959189,2.08921918,2034.2,2033.7,1.531]
[1773178959391,0.86023482,2034.1,2033.5,2.14897446]
[1773178959595,0.86023482,2034.1,2033.6,1.531]
[1773178959892,0.86023482,2034.1,2033.5,1.2293667]
[1773178960108,0.86023482,2034.1,2033.5,1.531]
[1773178960506,0.86023482,2034.1,2033.6,1.531]
[1773178960920,0.86023482,2034.1,2033.6,1.5321]
[1773178961230,0.86023482,2033.9,2033.6,1.5321]
[1773178962824,0.86023482,2033.7,2033.4,0.0011]
[1773178963023,2.90171486,2033.6,2033.4,0.0011]
[1773178963210,0.86023482,2033.7,2033.4,0.0011]
[1773178963535,1.22940742,2033.5,2033.4,0.0011]
[1773178963760,2.90393446,2033.6,2033.4,0.0011]
[1773178963761,1.22939369,2033.6,2033.4,0.0011]
[1773178964327,1.22939369,2033.6,2033.4,1.5321]
[1773178965433,2.08956336,2033.7,2033.4,1.5321]
[1773178965634,2.9068456,2033.6,2033.5,1.531]
[1773178966617,0.86023482,2033.9,2033.5,1.531]
[1773178966818,2.90851421,2033.8,2033.5,2.45060776]
[1773178967020,3.54834634,2034.2,2033.6,0.91960776]
[1773178967239,0.87250297,2033.9,2033.4,0.0011]
[1773178967545,1.17858077,2033.7,2033.5,1.524]
[1773178970414,2.10174901,2033.8,2033.5,1.524]
[1773178972742,2.10174901,2033.8,2033.5,1.518]
[1773178974917,2.10174901,2033.8,2033.7,0.0011]
[1773178975135,2.10174901,2033.8,2033.5,1.518]
[1773178975337,2.10174901,2033.8,2033.5,1.5191]
[1773178977039,2.10174901,2033.8,2033.5,0.0011]
[1773178977247,2.10174901,2033.8,2033.5,1.5221]
[1773178978635,0.92054048,2033.7,2033.5,0.0011]
[1773178978839,2.14986931,2033.7,2033.5,0.0011]
[1773178979040,2.90798357,2033.6,2033.5,0.0011]
[1773178980443,3.82852405,2033.6,2033.5,1.5231]
[1773178982330,3.82852405,2033.6,2033.5,0.0011]
[1773178983551,5.05787102,2033.6,2033.5,0.0011]
[1773178984133,3.82852405,2033.6,2033.5,0.0011]
[1773178984531,2.90798357,2033.6,2033.5,0.0011]
[1773178985425,1.54982608,2033.6,2033.5,0.93527305]
[1773178985627,2.14968654,2034.0,2033.5,2.45727305]
[1773178987139,2.14968654,2034.0,2033.7,0.0011]
[1773178987339,0.92054048,2034.0,2033.7,0.0011]
[1773178987629,0.001,2033.8,2033.7,1.5221]
[1773178992657,0.001,2033.8,2033.7,0.0011]
[1773178992862,0.001,2033.8,2033.7,1.5221]
[1773178993456,4.47763506,2034.2,2033.7,3.68555957]
[1773178993657,3.24860233,2034.2,2033.8,1.521]
[1773178993857,0.92154048,2034.2,2033.8,2.45517305]
[1773178994064,0.001,2034.5,2033.9,0.93417305]
[1773178994259,2.15035713,2034.5,2034.0,2.16327826]
[1773178994557,0.92154048,2034.5,2034.1,0.93417305]
[1773178995237,0.001,2034.5,2034.3,0.93417305]
[1773178996359,0.001,2034.5,2034.4,0.93417305]
[1773178996539,0.33930184,2035.0,2034.5,0.93417305]
[1773178996856,1.56784592,2035.0,2034.5,0.93417305]
[1773178997358,0.001,2034.9,2034.5,0.93417305]
[1773178997559,0.34030184,2035.0,2034.5,0.93417305]
[1773178997744,1.22840676,2035.2,2034.5,0.93417305]
[1773178997936,0.001,2035.1,2034.5,0.93417305]
[1773178998650,0.001,2035.1,2034.6,1.22874275]
[1773178998836,0.001,2035.1,2034.7,1.52]
[1773178999358,0.94104297,2035.4,2034.8,0.96392415]
[1773178999563,1.22833651,2035.3,2034.8,0.96392415]
[1773179001964,0.001,2035.2,2034.9,2.19248575]
[1773179002262,0.001,2035.3,2034.9,2.19248575]
[1773179002761,1.22920817,2035.5,2035.1,0.96392415]
[1773179002965,1.22920817,2035.5,2035.2,1.519]
[1773179003161,0.001,2035.5,2035.2,1.519]
[1773179003558,1.22921208,2035.5,2035.2,1.519]
[1773179005157,0.001,2035.5,2035.2,2.48292415]
[1773179006843,0.001,2035.5,2034.8,1.518]
[1773179006844,0.94104297,2035.4,2034.8,1.518]
[1773179007259,0.94104297,2035.4,2034.9,1.517]
[1773179007864,0.94104297,2035.4,2034.3,1.22892395]
[1773179008070,0.94104297,2035.4,2034.5,0.96392415]
[1773179009268,1.22832014,2035.3,2034.7,0.96392415]
[1773179009569,1.22832014,2035.3,2034.8,1.517]
[1773179009866,2.16935149,2035.4,2034.9,0.96392415]
[1773179011678,2.16935149,2035.4,2033.7,0.0011]
[1773179011679,0.94104297,2034.9,2033.7,0.0011]
[1773179011844,0.94104297,2034.5,2033.7,1.23035421]
[1773179012050,0.94104297,2034.5,2033.7,0.0011]
[1773179013140,0.94104297,2034.5,2033.7,2.73037895]
[1773179013544,0.94104297,2034.5,2034.2,0.0011]
[1773179013744,0.94104297,2034.3,2034.2,0.0011]
[1773179015959,2.16996692,2034.3,2034.2,0.0011]
[1773179020197,0.94104297,2034.3,2034.2,0.0011]
[1773179020648,0.94104297,2034.7,2034.2,0.0011]
[1773179021285,1.22874275,2034.6,2034.2,0.96502415]
[1773179023078,2.16967082,2034.8,2034.2,0.96502415]
[1773179023379,2.16967082,2034.8,2034.3,1.22892395]
[1773179023762,2.16967082,2034.8,2034.4,1.506]
[1773179024448,2.16967082,2034.8,2034.2,0.96502415]
[1773179024652,0.94104297,2034.7,2034.3,1.507]
[1773179025251,2.16977348,2034.7,2034.3,1.507]
[1773179025452,0.94104297,2034.6,2034.2,0.0011]
[1773179027563,1.22880314,2034.5,2034.2,0.0011]
[1773179027763,0.90918375,2034.4,2034.2,0.0011]
[1773179028091,2.13797289,2034.6,2034.2,0.97828672]
[1773179029070,2.13797289,2034.6,2034.2,0.0011]
[1773179030776,0.90918375,2034.6,2034.2,2.73408436]
[1773179030987,1.22968663,2034.7,2034.3,0.97918489]
[1773179031592,2.1331843,2034.7,2034.2,3.71326925]
[1773179032804,0.001,2034.7,2034.3,0.97918489]
[1773179033501,0.90449767,2034.7,2034.2,1.23008436]
[1773179033675,0.90449767,2034.7,2034.3,1.504]
[1773179033870,0.90449767,2034.7,2034.2,0.0011]
[1773179034082,0.90449767,2034.7,2034.2,2.20926621]
[1773179034286,0.90449767,2034.7,2034.3,0.97918489]
[1773179034487,0.001,2034.7,2034.3,0.97918489]
[1773179035094,0.001,2034.7,2034.3,2.20809524]
[1773179035301,0.001,2034.7,2034.4,0.97918489]
[1773179035795,0.90449767,2034.7,2034.2,0.98028489]
[1773179035988,0.90449767,2034.7,2034.2,2.48428489]
[1773179036686,0.90449767,2034.7,2033.8,4.91689482]